[Event "22nd Rochefort Festival Masters 2024"]
[Site "Rochefort"]
[Date "2024.02.20"]
[Round "5.2"]
[White "Eugene, Floryan"]
[Black "Sivuk, Vitaly"]
[Result "0-1"]
[ECO "C54"]
[WhiteElo "2398"]
[BlackElo "2502"]
[Annotator "TA"]
[PlyCount "96"]
[EventDate "2024.02.18"]
[EventType "swiss"]
[EventCountry "FRA"]
[SourceTitle "playchess.com"]
[Source "ChessBase"]
[SourceQuality "1"]
[TimeControl "40/5400+30:1800+30"]

{[%evp 28,96,0,0,0,0,0,0,0,1,0,7,10,-15,-17,-35,-16,-157,-165,-160,-158,-155,-164,-164,-164,-164,-171,-206,-78,-146,-133,-171,-176,-166,-118,-126,-57,-378,-385,-366,-352,-329,-256,-353,-332,-305,-272,-328,-362,-386,-386,-529,-531,-527,-527,-506,-486,-660,-650,-653,-627,-1328,-1492,-1503,-1152,-1550,-1553,-1322,-1212,-1310,-1205]} 1. e4 {[%emt 1:31:00]} e5 {[%emt 0:07:40]} 2. Nf3 {[%emt 0:00:00]} Nc6 {[%emt 1:23:50]} 3. Bc4 {[%emt 0:01:00]} Nf6 {[%emt 0:00:30]} 4. d3 {[%emt 0:00:00]} Bc5 {[%emt 0:00:00]} 5. O-O {[%emt 0:00:00]} d6 {[%emt 0:00:00]} 6. c3 {[%emt 0:00:00]} a5 {[%emt 0:01:30]} 7. Re1 {[%emt 0:02:00]} Ba7 {[%emt 0:00:00]} 8. Nbd2 {[%emt 0:00:00]} O-O {[%emt 0:01:00]} 9. h3 {[%emt 0:00:00]} Be6 {[%emt 0:00:30]} 10. Bb5 {[%emt 0:01:30]} Ne7 {[%emt 0:00:30]} 11. d4 {[%emt 0:00:00]} Ng6 {[%emt 0:00:00]} 12. Ba4 {[%emt 0:01:00]} Nh5 {[%emt 0:01:00]} 13. Nf1 {[%emt 0:00:00]} Nhf4 {[%emt 0:00:30]} 14. Ng3 {[%emt 0:00:00]} exd4 {[%emt 0:00:30]} 15. Nxd4 {[%emt 0:00:00]} Bxd4 {[%emt 0:00:30]} 16. Qxd4 {[%emt 0:02:00]} Nxg2 {[%emt 0:00:30]} 17. Kxg2 {[%emt 0:00:30]} (17. Nh5 $5 Ne5 $8 18. Kxg2 $11) 17... Nh4+ $1 {[%emt 0:00:00]} 18. Kh1 {[%emt 0:00:00]} Nf3 $1 {[%emt 0:00:00]} 19. Qe3 {[%emt 0:00:00]} Nxe1 {[%emt 0:01:30]} 20. Bd2 {[%emt 0:01:30]} f5 {[%emt 0:00:30]} 21. Qxe1 {[%emt 0:00:30]} Qh4 {[%emt 0:00:30]} 22. Kg1 {[%emt 0:00:30]} (22. Kg2 $1 $11) 22... f4 $17 {[%emt 0:00:00]} 23. Nf5 {[%emt 0:00:00]} Qxh3 {[%emt 0:01:00]} 24. Qf1 {[%emt 0:00:00]} Bxf5 {[%emt 0:00:30]} 25. exf5 {[%emt 0:01:30]} Qxf5 {[%emt 0:00:00]} (25... Qxf1+ 26. Kxf1 Rxf5 27. Kg2 $11) 26. Qg2 {[%emt 0:00:30]} c6 {[%emt 0:01:00]} 27. Rc1 {[%emt 0:00:30] [#]} Qd3 {[%emt 0:00:00]} (27... Rae8 $1 $19 {[%cal Re8e2] has better winning chances. Hoping for ...Re2.} 28. Qf3 Re5) 28. f3 {[%emt 0:00:30]} (28. Qf1 $142 Qf5 (28... Qxd2 $2 29. Rc2 $18) 29. Qg2) 28... Rae8 $17 {[%emt 0:00:00]} 29. Bc2 {[%emt 0:00:30] [#]} Qb5 $1 {[%emt 0:01:30]} 30. Qh2 {[%emt 0:00:30]} g6 {[%emt 0:00:00]} (30... Qxb2 $2 31. Qxh7+ (31. Bxh7+ Kf7 $18) 31... Kf7 32. Rb1 $18 (32. Bxf4 Qb6+ 33. Kf1 Qb5+ 34. Bd3 Qd5 $16) (32. Bxf4 Qb6+ 33. Kf1 Qb5+ 34. Bd3 Qc5 $18)) ({Black should try} 30... h6 $19 {aiming for ...Re2.} 31. Bb3+ Kh8) 31. Bxf4 {[%emt 0:00:30]} d5 {[%emt 0:01:00]} (31... Qxb2 $2 32. Bb3+ d5 33. Qxb2 $18) ({Better is} 31... Rf7 $17 {Strongly threatening ...a4.} 32. Qg3 a4 (32... Qxb2 $2 33. Bh6 $19)) 32. Bxg6 $2 {[%emt 0:00:30][%mdl 8192]} (32. Be5 $15 Qb6+ (32... Qxb2 $2 33. Rb1 $18) (32... Rxf3 33. Bxg6 hxg6 34. Qh8+ Kf7 35. Qg7+ Ke6 36. Qxg6+ Kxe5 37. Qxe8+ Kf4 38. Qf7+ Kg3 39. Qg6+ Kh4 40. Qh6+ Kg4 41. Qg6+ Kh4 42. Qh6+ Kg4 43. Qg7+ Kh5 44. Qh8+ Kg4 45. Qg7+ Kh4 46. Qh7+ Kg4 47. Qg7+ $11) 33. Bd4) 32... hxg6 $19 {[%emt 0:00:00]} 33. Be5 {[%emt 0:00:30]} Rxe5 {[%emt 0:00:00]} (33... Rxf3 34. Qh8+ Kf7 35. Qh7+ Ke6 36. Qxg6+ Kxe5 (36... Kd7 37. Qd6+ Kc8 38. Qc7#) 37. Qxe8+ Kd6 38. Qd8+ Ke5 (38... Kc5 39. b4+ axb4 40. cxb4+ Kd4 41. Qh4+ Kd3 42. Qh7+ Kd2 43. Qc2+ Ke3 44. Re1+ Kf4 45. Qd2+ Kf5 46. Qh6 $11) 39. Re1+ Kf5 40. Kg2 $11) 34. Qxe5 {[%emt 0:00:00]} Qxb2 {[%emt 0:01:30]} ({Worse is} 34... Rxf3 35. Kg2 Qxb2+ 36. Kxf3 Qxc1 37. Qe8+ Kg7 38. Qe7+ Kg8 39. Qd8+ Kf7 40. Qd7+ Kf8 (40... Kf6 41. Qd6+ Kf5 42. Qd7+ Kg5 43. Qe7+ Kh5 44. Qe5+ Qg5 45. Qh8+ Qh6 46. Qe5+ g5 47. Qe8+ Qg6 48. Qh8+ Qh6 49. Qe8+ Qg6 50. Qh8+ Qh6 51. Qe8+ $11) 41. Qd8+ Kf7 42. Qd7+ Kf8 (42... Kf6 43. Qd6+ Kf7 44. Qd7+ $11) 43. Qd8+ Kf7 $11) 35. Qg5 {[%emt 0:01:00]} Kg7 {[%emt 0:00:00]} ({Not} 35... Rxf3 36. Qxg6+ Kf8 37. Qd6+ Kg7 38. Qe5+ Kg6 39. Qe8+ Kg5 40. Qe7+ Kh6 41. Qh4+ Kg6 42. Qg4+ Kh6 43. Qh4+ Kg6 44. Qg4+ Kh7 45. Qh5+ Kg7 46. Qg5+ Kf8 47. Qd8+ Kf7 48. Qd7+ Kf6 49. Qd8+ Kf7 50. Qd7+ Kg6 51. Qg4+ $11) 36. Qe5+ {[%emt 0:00:00]} Rf6 {[%emt 0:00:00]} 37. Qe7+ {[%emt 0:00:14]} Rf7 {[%emt 0:00:00]} 38. Qe5+ {[%emt 0:00:03]} Kh7 {[%emt 0:00:00]} 39. Rd1 {[%emt 0:01:43]} Rxf3 {[%emt 0:00:00]} 40. Qe7+ {[%emt 0:00:30]} Kh6 {[%emt 0:03:00]} 41. Qh4+ {[%emt 0:04:22]} Kg7 {[%emt 0:30:30]} 42. Re1 {[%emt 0:26:38]} Qxc3 {[%emt 0:00:30]} 43. Re8 {[%emt 0:00:00]} Qa1+ {[%emt 0:00:30]} 44. Kh2 {[%emt 0:00:00]} Qxa2+ {[%emt 0:00:00]} 45. Kg1 {[%emt 0:00:00]} Qa1+ {[%emt 0:01:00]} 46. Kh2 {[%emt 0:00:00]} Qb2+ {[%emt 0:00:00]} 47. Kg1 {[%emt 0:00:00]} Qc1+ {[%emt 0:00:00]} 48. Re1 {[%emt 0:00:00]} Qf4 {[%emt 0:01:30]} 0-1

[Event "22nd Rochefort Festival Masters 2024"]
[Site "Rochefort"]
[Date "2024.02.20"]
[Round "5.3"]
[White "Droin, Augustin"]
[Black "Mullon, Jean-Baptiste"]
[Result "1-0"]
[ECO "B31"]
[WhiteElo "2471"]
[BlackElo "2305"]
[Annotator "TA"]
[PlyCount "75"]
[EventDate "2024.02.18"]
[EventType "swiss"]
[EventCountry "FRA"]
[SourceTitle "playchess.com"]
[Source "ChessBase"]
[SourceQuality "1"]
[TimeControl "40/5400+30:1800+30"]

{[%evp 10,75,39,33,66,64,61,60,65,60,141,139,141,133,176,200,209,191,200,198,211,217,258,213,292,292,359,343,362,383,341,368,396,406,402,396,439,452,448,435,452,452,537,508,536,544,527,511,507,421,396,413,491,498,533,336,338,314,545,541,696,682,914,908,965,958,946,914]} 1. e4 {[%emt 1:31:00]} c5 {[%emt 0:00:12]} 2. Nf3 {[%emt 0:00:00]} Nc6 {[%emt 1:31:18]} 3. Bb5 {[%emt 0:00:00]} g6 {[%emt 0:00:30]} 4. O-O {[%emt 0:00:00]} Bg7 {[%emt 0:00:30]} 5. c3 {[%emt 0:02:00]} d6 {[%emt 0:00:30]} 6. d4 {[%emt 0:00:30]} Bd7 {[%emt 0:00:30]} 7. dxc5 {[%emt 0:00:30]} dxc5 {[%emt 0:00:30]} 8. Re1 {[%emt 0:00:30]} a6 {[%emt 0:00:00] White is slightly better.} 9. Bf1 {[%emt 0:00:00] White is more active.} Nf6 (9... Bg4 $14) 10. e5 $16 {[%emt 0:01:00]} Ng4 {[%emt 0:01:30]} 11. Bf4 {[%emt 0:00:30]} h5 {[%emt 0:00:30]} 12. h3 {[%emt 0:00:30]} Nh6 {[%emt 0:00:30]} 13. Nbd2 {[%emt 0:00:30][%cal Bb1d2,Bd2c4,Bc4b6][%mdl 32]} Bf5 {[%emt 0:00:30]} 14. Qe2 {[%emt 0:00:30]} Qc8 {[%emt 0:00:30]} 15. Nc4 {[%emt 0:00:30] Qe3 would now be deadly.} Ra7 {[%emt 0:00:30]} 16. Qe3 {[%emt 0:00:00]} ({Resist} 16. Nb6 Qd8 $18) 16... Nd8 {[%emt 0:00:30] [#]} 17. a4 {[%emt 0:01:00][%cal Ba2a4,Ba4a5][%mdl 32]} ({Less strong is} 17. Nb6 Qc6 $16) 17... Ne6 {[%emt 0:00:30]} 18. Nb6 {[%emt 0:00:30]} Qc6 {[%emt 0:00:00]} 19. a5 {[%emt 0:00:30]} Nxf4 {[%emt 0:00:00]} 20. Qxf4 {[%emt 0:00:00]} Be6 {[%emt 0:01:30]} 21. Ng5 {[%emt 0:01:00]} O-O {[%emt 0:00:30]} 22. Nxe6 {[%emt 0:00:30]} Qxe6 {[%emt 0:00:30]} 23. Bc4 {[%emt 0:00:30]} Qf5 {[%emt 0:00:00]} 24. Qe3 {[%emt 0:00:30]} Kh7 {[%emt 0:01:00]} 25. Qxc5 {[%emt 0:00:00]} f6 {[%emt 0:00:30] [#]} 26. Nd7 $1 {[%emt 0:00:00][%mdl 512]} Qxd7 {[%emt 0:00:00]} 27. Qxa7 {[%emt 0:01:30]} Qc6 {[%emt 0:00:00]} 28. Bd3 {[%emt 0:00:30]} fxe5 {[%emt 0:01:30]} 29. Qb6 {[%emt 0:00:30] Qxc6 is the strong threat.} Qxb6 {[%emt 0:00:00]} 30. axb6 {[%emt 0:00:00]} Rf6 {[%emt 0:00:00]} 31. Rxe5 {[%emt 0:00:00]} Rd6 {[%emt 0:01:30]} 32. Re3 {[%emt 0:00:00]} ({Not} 32. Rxh5 Rxd3 33. Rc5 Rd6 $14) 32... Bf6 {[%emt 0:00:30]} 33. Ra5 {[%emt 0:02:00]} Rxb6 $2 {[%emt 0:00:30]} (33... h4 34. g4 hxg3 35. Rxg3 Bh4) 34. Rxh5 $18 {[%emt 0:00:30] White is clearly winning.} Kg7 {[%emt 0:00:00]} 35. Rg3 {[%emt 0:00:30]} g5 {[%emt 0:01:00]} 36. f4 {[%emt 0:00:30][%cal Bf2f4,Bf4g5][%mdl 32]} Nf7 {[%emt 0:00:00]} 37. fxg5 {[%emt 0:00:00]} Be5 {[%emt 0:00:00]} 38. Rf3 {[%emt 0:01:00] Black got outplayed after the opening.   Weighted Error Value: White=0.15 (very precise) /Black=0.37.  Mistake:       	---       	Black=2      Inaccurate:     	White=1     	Black=3      OK:         	White=15    	Black=8      Best:        	White=6     	---} 1-0

[Event "22nd Rochefort Festival Masters 2024"]
[Site "Rochefort"]
[Date "2024.02.20"]
[Round "5.4"]
[White "Roshka, Yevgeniy"]
[Black "Lucas, Arthur"]
[Result "1/2-1/2"]
[ECO "D25"]
[WhiteElo "2474"]
[BlackElo "2332"]
[Annotator "ChessBase"]
[PlyCount "152"]
[EventDate "2024.02.18"]
[EventType "swiss"]
[EventCountry "FRA"]
[SourceTitle "playchess.com"]
[Source "ChessBase"]
[SourceQuality "1"]
[TimeControl "40/5400+30:1800+30"]

1. Nf3 {[%emt 1:31:00]} d5 {[%emt 0:00:31]} 2. d4 {[%emt 0:00:00]} Nf6 {[%emt 0:00:08]} 3. c4 {[%emt 0:00:00]} dxc4 {[%emt 0:00:19]} 4. e3 {[%emt 0:01:30]} b5 {[%emt 1:31:32]} 5. a4 {[%emt 0:00:30]} c6 {[%emt 0:00:00]} 6. axb5 {[%emt 0:00:30]} cxb5 {[%emt 0:00:00]} 7. b3 {[%emt 0:00:30]} e6 {[%emt 0:01:30]} 8. bxc4 {[%emt 0:00:00]} bxc4 {[%emt 0:00:30]} 9. Bxc4 {[%emt 0:01:00]} Bd6 {[%emt 0:00:30]} 10. O-O {[%emt 0:00:00]} O-O {[%emt 0:00:30]} 11. Nbd2 {[%emt 0:01:00]} Bb7 {[%emt 0:00:30]} 12. Bd3 {[%emt 0:00:30]} Nc6 {[%emt 0:00:30]} 13. Ba3 {[%emt 0:00:30]} Nb4 {[%emt 0:00:30]} 14. Bb1 {[%emt 0:00:00]} a5 {[%emt 0:00:30]} 15. e4 {[%emt 0:01:00]} Be7 {[%emt 0:00:30]} 16. Qb3 {[%emt 0:00:00]} Qb6 17. e5 {[%emt 0:01:00]} Nfd5 {[%emt 0:01:00]} 18. Nc4 {[%emt 0:00:30]} Qb5 {[%emt 0:00:30]} 19. Nd6 {[%emt 0:00:30]} Bxd6 {[%emt 0:00:00]} 20. exd6 {[%emt 0:00:30]} Nf4 {[%emt 0:01:00]} 21. Re1 {[%emt 0:00:30]} Qh5 {[%emt 0:00:30]} 22. Re5 {[%emt 0:00:30]} Qg4 {[%emt 0:00:00]} 23. Ne1 {[%emt 0:00:30]} Nxg2 {[%emt 0:01:00]} 24. h3 {[%emt 0:00:30]} Qxd4 {[%emt 0:00:00]} 25. Bb2 {[%emt 0:00:30]} Nxe1 {[%emt 0:00:00]} 26. Bxd4 {[%emt 0:00:00]} Nf3+ {[%emt 0:00:00]} 27. Qxf3 {[%emt 0:00:00]} Bxf3 {[%emt 0:02:00]} 28. Bb6 {[%emt 0:01:30]} Bd5 {[%emt 0:00:30]} 29. Be4 {[%emt 0:00:30]} Ra6 {[%emt 0:00:00]} 30. Bc7 {[%emt 0:00:00]} f6 {[%emt 0:00:00]} 31. Bxd5 {[%emt 0:00:00]} Nxd5 {[%emt 0:00:33]} 32. Rxd5 {[%emt 0:00:00]} exd5 {[%emt 0:00:01]} 33. d7 {[%emt 0:00:00]} Raa8 {[%emt 0:01:11]} 34. Rxa5 {[%emt 0:02:30]} Rad8 {[%emt 0:00:34]} 35. Rxd5 {[%emt 0:00:00]} Kf7 {[%emt 0:00:10]} 36. Bxd8 {[%emt 0:00:00]} Rxd8 {[%emt 0:00:04]} 37. Kg2 {[%emt 0:00:00]} Ke6 {[%emt 0:00:17]} 38. Rh5 {[%emt 0:00:00]} h6 {[%emt 0:00:10]} 39. Ra5 {[%emt 0:00:00]} Rxd7 {[%emt 0:02:30]} 40. h4 {[%emt 0:03:00]} Kf7 {[%emt 0:00:00]} 41. Kg3 {[%emt 0:30:30]} g6 {[%emt 0:07:56]} 42. f3 {[%emt 0:00:30]} h5 {[%emt 0:00:28]} 43. Ra6 {[%emt 0:00:30]} Kg7 {[%emt 0:00:36]} 44. Ra5 {[%emt 0:00:30]} Rd6 {[%emt 0:23:30]} 45. Ra7+ {[%emt 0:00:00]} Kh6 {[%emt 0:00:30]} 46. Ra8 {[%emt 0:00:00]} g5 47. hxg5+ {[%emt 0:01:30]} fxg5 {[%emt 0:01:00]} 48. Rh8+ {[%emt 0:00:00]} Kg6 {[%emt 0:00:00]} 49. Rg8+ {[%emt 0:00:00]} Kf5 {[%emt 0:00:00]} 50. Rf8+ {[%emt 0:00:00]} Rf6 {[%emt 0:00:00]} 51. Ra8 {[%emt 0:02:00]} h4+ {[%emt 0:02:00]} 52. Kg2 {[%emt 0:00:30]} Rd6 {[%emt 0:00:00]} 53. Rf8+ {[%emt 0:00:30]} Ke5 {[%emt 0:01:00]} 54. Re8+ {[%emt 0:00:30]} Re6 {[%emt 0:00:00]} 55. Rg8 {[%emt 0:00:00]} Kf5 {[%emt 0:00:00]} 56. Rf8+ {[%emt 0:00:00]} Rf6 {[%emt 0:00:00]} 57. Ra8 {[%emt 0:00:00]} Kg6 {[%emt 0:02:00]} 58. Rg8+ {[%emt 0:02:00]} Kh6 {[%emt 0:00:00]} 59. Rh8+ {[%emt 0:00:00]} Kg7 {[%emt 0:00:00]} 60. Ra8 {[%emt 0:01:00]} Rd6 {[%emt 0:01:30]} 61. Kh3 {[%emt 0:00:00]} Rd4 {[%emt 0:00:00]} 62. Ra6 {[%emt 0:00:00]} Rf4 {[%emt 0:00:00]} 63. Kg2 {[%emt 0:01:30]} Rf5 {[%emt 0:00:00]} 64. Rb6 {[%emt 0:00:00]} Rf6 {[%emt 0:00:00]} 65. Rb8 {[%emt 0:00:00]} Kg6 {[%emt 0:00:00]} 66. Rg8+ {[%emt 0:00:00]} Kf5 {[%emt 0:00:00]} 67. Ra8 {[%emt 0:02:00]} Rd6 {[%emt 0:02:43]} 68. Rf8+ {[%emt 0:00:00]} Ke5 {[%emt 0:00:27]} 69. Re8+ {[%emt 0:00:00]} Kd4 {[%emt 0:00:48]} 70. Re4+ {[%emt 0:00:00]} Kd5 {[%emt 0:00:29]} 71. Rg4 {[%emt 0:00:00]} Rg6 {[%emt 0:00:24]} 72. f4 {[%emt 0:02:30]} Ke4 {[%emt 0:00:15]} 73. fxg5+ {[%emt 0:00:00]} Kf5 {[%emt 0:00:05]} 74. Rxh4 {[%emt 0:00:00]} Rxg5+ {[%emt 0:00:06]} 75. Kf2 {[%emt 0:00:00]} Rg4 {[%emt 0:00:03]} 76. Rxg4 {[%emt 0:00:00]} Kxg4 {[%emt 0:00:04]} 1/2-1/2

[Event "22nd Rochefort Festival Masters 2024"]
[Site "Rochefort"]
[Date "2024.02.20"]
[Round "5.5"]
[White "Larkin, Vladyslav"]
[Black "Mekhane, Adam"]
[Result "1-0"]
[ECO "A21"]
[WhiteElo "2484"]
[BlackElo "2280"]
[Annotator "TA"]
[PlyCount "127"]
[EventDate "2024.02.18"]
[EventType "swiss"]
[EventCountry "FRA"]
[SourceTitle "playchess.com"]
[Source "ChessBase"]
[SourceQuality "1"]
[TimeControl "40/5400+30:1800+30"]

{[%evp 10,127,5,9,5,5,21,19,16,16,59,59,73,70,91,78,71,74,72,76,75,68,72,74,81,79,82,75,71,70,70,63,81,81,81,81,81,81,81,81,81,81,85,85,85,85,85,85,85,24,108,18,111,0,120,120,120,106,120,101,120,120,135,120,122,120,127,120,120,120,120,0,120,105,120,120,120,120,120,120,120,120,123,0,120,120,120,120,127,112,120,120,112,112,112,112,112,112,125,112,112,83,125,125,181,181,181,181,173,153,304,295,278,241,29991,29992,29992,29993,29993,29994]} 1. c4 {[%emt 1:31:00]} e5 {[%emt 1:31:00]} 2. Nc3 {[%emt 0:00:00]} Bb4 {[%emt 0:00:30]} 3. Qb3 {[%emt 0:01:00]} a5 {[%emt 0:00:00]} 4. Nf3 {[%emt 0:00:30]} d6 {[%emt 0:01:00]} 5. Na4 $146 {[%emt 0:00:30]} ({Predecessor:} 5. a3 Bc5 6. e3 Nf6 7. Be2 O-O 8. O-O Re8 9. d4 Ba7 10. Rd1 e4 11. Nd2 {1-0 Kovalenko,I (2674)-Krzyzanowski,M (2512) Titled Tuesday intern op 29th Aug Early blitz 2023 (8)}) 5... Nd7 {[%emt 0:00:30]} 6. a3 {[%emt 0:00:30] A21: English Opening: 1...e5 2 Nc3.} Bc5 $1 {[%emt 0:00:00]} 7. Qc2 {[%emt 0:00:30]} Ba7 {[%emt 0:01:00]} 8. b4 {[%emt 0:00:30]} axb4 {[%emt 0:00:00]} 9. axb4 {[%emt 0:00:30]} b5 {[%emt 0:01:00]} 10. cxb5 {[%emt 0:00:00]} Bb7 {[%emt 0:00:30]} 11. Bb2 {[%emt 0:01:00]} Nb6 {[%emt 0:00:30]} 12. e3 {[%emt 0:00:00]} (12. Nc5 {with more complications.} Bxf3 13. Na6 Bb7 14. Nxc7+ Ke7 15. Nxa8 Qxa8 16. d4) 12... Nxa4 {[%emt 0:00:00]} 13. Rxa4 {[%emt 0:00:00]} (13. Qxa4 Bxe3 (13... Bd4 14. Qc2 $17) 14. Qb3 Rxa1+ 15. Bxa1 Bb6 $11) 13... Bb6 {[%emt 0:01:00]} 14. Rxa8 {[%emt 0:01:30]} Qxa8 {[%emt 0:00:00]} 15. Be2 {[%emt 0:00:00]} Nf6 {[%emt 0:00:00]} 16. O-O {[%emt 0:01:00]} O-O {[%emt 0:01:30]} 17. Ra1 {[%emt 0:00:30]} Qc8 {[%emt 0:00:30]} 18. d4 {[%emt 0:00:30]} e4 {[%emt 0:00:00]} 19. Nd2 {[%emt 0:00:30]} Bd5 {[%emt 0:01:00]} 20. Nc4 {[%emt 0:00:30]} Bxc4 {[%emt 0:00:00]} 21. Qxc4 {[%emt 0:00:00]} d5 {[%emt 0:00:00]} 22. Qc6 {[%emt 0:01:00]} h5 {[%emt 0:00:00]} 23. Bc3 {[%emt 0:00:00]} Qf5 {[%emt 0:00:00]} 24. Be1 {[%emt 0:01:00]} g5 {[%emt 0:00:00]} 25. h3 Kg7 {[%emt 0:03:00]} 26. Ra8 {[%emt 0:00:00]} Rxa8 {[%emt 0:00:00]} 27. Qxa8 {[%emt 0:00:00]} g4 {[%emt 0:00:00]} 28. hxg4 {[%emt 0:00:00]} hxg4 {[%emt 0:01:30]} 29. Qd8 {[%emt 0:02:30]} (29. Qc6 $16) 29... Qg5 {[%emt 0:00:00]} (29... g3 $1 $11 {remains equal.}) 30. Qe7 {[%emt 0:00:30]} (30. Qc8 $16) 30... Kg6 {[%emt 0:01:00]} (30... g3 $1 $11) 31. Bc3 {[%emt 0:00:30]} (31. Qf8 $16) 31... Nh7 {[%emt 0:00:30]} (31... g3 $11 {keeps the balance.} 32. Qe5 Qxe5 33. dxe5 Ng8) 32. Qe8 $16 {[%emt 0:00:00]} Nf6 {[%emt 0:00:00]} 33. Qe5 {[%emt 0:01:00]} Nd7 {[%emt 0:00:00]} 34. Qg3 {[%emt 0:00:30]} Nf6 {[%emt 0:01:30]} 35. Bd1 {[%emt 0:00:00]} Kh6 {[%emt 0:00:30]} 36. Kf1 {[%emt 0:00:00]} Kg6 {[%emt 0:00:00]} 37. Ke1 {[%emt 0:01:30]} Qh5 {[%emt 0:01:00]} 38. Kd2 {[%emt 0:00:00]} Qg5 {[%emt 0:00:30]} 39. Kc2 {[%emt 0:00:00]} Qf5 {[%emt 0:00:00]} 40. Kd2 {[%emt 0:01:30]} Qg5 $1 {[%emt 0:00:21]} 41. Be2 {[%emt 0:30:30]} Kh6 {[%emt 0:14:16]} 42. Kc2 {[%emt 0:00:30]} Kg6 {[%emt 0:17:23]} 43. Bd2 {[%emt 0:00:00]} Kh6 {[%emt 0:00:00]} 44. Kc1 {[%emt 0:00:00]} Kg6 {[%emt 0:00:00]} 45. Bd1 {[%emt 0:01:30]} Kh6 {[%emt 0:01:30]} 46. Be2 {[%emt 0:00:30]} Kg6 $1 {[%emt 0:00:00]} 47. Kd1 {[%emt 0:00:30]} Kh6 {[%emt 0:01:00]} 48. Ke1 {[%emt 0:00:30]} Kg6 {[%emt 0:00:00]} 49. Bc3 {[%emt 0:00:30]} Kh6 {[%emt 0:01:00]} 50. Kf1 {[%emt 0:00:00]} (50. Bd1 {feels hotter.} Kg6 51. Kd2 Kf5 52. Ke2) 50... Kg6 {[%emt 0:00:00]} 51. Kg1 {[%emt 0:01:00]} Kh6 {[%emt 0:01:00]} 52. Bd1 {[%emt 0:00:00]} Kg6 {[%emt 0:00:00]} 53. Qe5 {[%emt 0:01:00]} Nd7 {[%emt 0:01:00]} 54. Qh8 {[%emt 0:00:30]} Nf6 {[%emt 0:00:00]} 55. Kh2 {[%emt 0:00:30]} Nh5 {[%emt 0:01:00]} ({Don't go for} 55... g3+ $2 56. Kg1 $18) 56. Qg8+ {[%emt 0:00:00]} Ng7 {[%emt 0:00:30]} (56... Kf6 $16 57. Qh8+ Ke7) 57. g3 $18 {[%emt 0:01:00]} Qf5 {[%emt 0:00:00]} 58. Kg1 {[%emt 0:00:00]} Qd7 {[%emt 0:00:00]} 59. Qa8 {[%emt 0:01:00]} f5 $2 {[%emt 0:01:30]} (59... Ne8 $16 {was necessary.} 60. Qc6+ Qxc6 61. bxc6 f5) 60. Bb3 $18 {[%emt 0:00:00]} Qxb5 {[%emt 0:00:00]} 61. Bxd5 {[%emt 0:00:00]} ({Much less strong is} 61. Qxd5 Qxd5 62. Bxd5 Ne8 $18) 61... Qd3 $2 {[%emt 0:00:17]} (61... Qe8 $18 62. Qa2 Nh5) 62. Qc6+ {[%emt 0:00:00]} Kh7 {[%emt 0:00:40]} 63. Bf7 {[%emt 0:00:00]} Qd1+ {[%emt 0:00:31]} 64. Kh2 {[%emt 0:02:30]} 1-0

[Event "22nd Rochefort Festival Masters 2024"]
[Site "Rochefort"]
[Date "2024.02.20"]
[Round "6.1"]
[White "Romanov, Evgeny"]
[Black "Droin, Augustin"]
[Result "1/2-1/2"]
[ECO "A13"]
[WhiteElo "2578"]
[BlackElo "2471"]
[Annotator "TA"]
[PlyCount "79"]
[EventDate "2024.02.18"]
[EventType "swiss"]
[EventCountry "FRA"]
[SourceTitle "playchess.com"]
[Source "ChessBase"]
[SourceQuality "1"]
[TimeControl "40/5400+30:1800+30"]

{[%evp 9,79,9,18,7,18,0,20,25,29,20,16,0,19,0,0,0,45,0,0,0,56,0,0,12,18,0,-10,-31,-26,-86,-78,-79,-91,-97,-93,-81,-89,-96,-58,-50,-37,-35,-35,-44,-43,-49,-22,-39,-30,-43,-31,-41,-40,-61,-13,-10,-9,-9,-11,-20,-7,-46,-42,-42,0,-6,0,0,0,0,0,0]} 1. c4 {[%emt 1:31:00]} Nf6 {[%emt 1:31:00]} 2. Nf3 {[%emt 0:00:30]} e6 {[%emt 0:00:00]} 3. g3 {[%emt 0:00:00]} d5 {[%emt 0:00:00]} 4. Bg2 {[%emt 0:01:00]} d4 {[%emt 0:01:30]} 5. d3 {[%emt 0:00:30]} Be7 {[%emt 0:00:00]} 6. O-O {[%emt 0:00:00][%cal Ob2b4]} O-O {[%emt 0:01:00]} 7. e4 {[%emt 0:01:00][%cal Be2e4,Be4e5][%mdl 32]} Nc6 {[%emt 0:00:30][%cal Bb8c6,Bc6b4,Bb4d3][%mdl 32]} 8. e5 {[%emt 0:00:00]} Nd7 {[%emt 0:00:00]} 9. Qe2 {[%emt 0:01:00]} a5 {[%emt 0:00:00]} 10. h4 {[%emt 0:00:30]} Rb8 {[%emt 0:01:30]} 11. Bf4 {[%emt 0:00:30]} Nc5 {[%emt 0:00:30]} 12. Na3 {[%emt 0:00:30][%cal Bb1a3,Ba3b5,Bb5d4][%mdl 32]} Nb4 {[%emt 0:00:30]} 13. Nb5 {[%emt 0:00:30]} Nbxd3 {[%emt 0:00:30]} 14. Bd2 {[%emt 0:00:30]} Bd7 {[%emt 0:00:30]} (14... Ra8 $1 $11) 15. Nbxd4 {[%emt 0:00:30]} ({Don't play} 15. Nfxd4 Bxb5 16. Nxb5 c6 $15) 15... Nxb2 {[%emt 0:00:30]} 16. Bxa5 {[%emt 0:00:30]} Ra8 {[%emt 0:00:30]} 17. Nb3 {[%emt 0:00:30]} Nba4 {[%emt 0:00:00]} 18. Bd2 {[%emt 0:00:30]} Bc6 {[%emt 0:01:00]} 19. Be3 {[%emt 0:00:30]} (19. Bb4 $11) 19... Qd3 $17 {[%emt 0:00:30]} 20. Qxd3 {[%emt 0:00:00]} Nxd3 {[%emt 0:00:00]} 21. Rfd1 {[%emt 0:01:00]} Rfd8 {[%emt 0:01:00] ...Nab2 is the strong threat.} 22. Bd4 {[%emt 0:00:00]} Nb4 {[%emt 0:00:30]} 23. Rd2 {[%emt 0:00:00]} Nb6 {[%emt 0:00:30]} 24. Bxb6 {[%emt 0:01:30]} cxb6 {[%emt 0:00:30]} 25. Rxd8+ {[%emt 0:00:30]} Rxd8 {[%emt 0:00:30]} ({Don't do} 25... Bxd8 26. Nfd4 $17) 26. Nfd4 {[%emt 0:00:00]} Bxg2 {[%emt 0:00:00]} 27. Kxg2 {[%emt 0:01:00]} Rc8 {[%emt 0:01:00]} 28. Nd2 {[%emt 0:00:30]} Ra8 {[%emt 0:00:30]} 29. a4 {[%emt 0:00:30]} Nd3 {[%emt 0:00:30]} 30. f4 {[%emt 0:00:00]} Nc5 {[%emt 0:00:30]} 31. Kf3 {[%emt 0:01:00]} Kf8 {[%emt 0:00:30]} ({But not} 31... Nxa4 32. Nb5 $11) (31... Rxa4 $15 32. Rxa4 Nxa4) 32. Ne4 $11 {[%emt 0:00:30]} Rxa4 {[%emt 0:00:30]} 33. Rxa4 {[%emt 0:00:00]} Nxa4 {[%emt 0:00:30][%mdl 4096] Endgame. KBN-KNN} 34. Nb5 {[%emt 0:01:00]} f6 {[%emt 0:00:30]} 35. h5 {[%emt 0:00:30]} fxe5 {[%emt 0:00:00]} 36. fxe5 {[%emt 0:00:30]} h6 {[%emt 0:01:00]} 37. Ned6 {[%emt 0:00:30] The position is equal.} Bxd6 {[%emt 0:00:30]} 38. Nxd6 {[%emt 0:00:00]} Nc5 {[%emt 0:00:30]} 39. g4 {[%emt 0:01:00]} Ke7 {[%emt 0:00:30]} 40. Ke3 {[%emt 0:00:30] Weighted Error Value: White=0.12 (very precise) /Black=0.12 (very precise) .  Mistake:       	White=1     	Black=2      Inaccurate:     	White=4     	Black=4      OK:         	White=15    	Black=9      Best:        	White=2     	Black=3} 1/2-1/2